{"text_format":"1","workbook":"xlsx","n_sheets":1,"sheets":["Sheet1"],"not_rendered":{"charts":0,"images":0,"macros":1,"external_links":0,"defined_names":1,"comments":0,"pivot_tables":0},"unopened":[],"bounds":{"document_bytes":16777216,"sheet_cells":100000,"rows_first":2000,"rows_last":500,"rows_between":2000,"halvings":0,"cell_chars":16384,"cell_head_chars":4096},"cells_cut":0,"cells_raw":0,"read":"whole","date_system":"1900"}

{"sheet":"Sheet1","index":0,"n_rows":34,"n_cols":18,"rows_kept":34,"cut":false,"hidden":false,"merged":[[11,16,12,17],[2,8,8,13],[11,13,12,15],[4,14,5,15],[0,0,8,7],[0,15,1,15],[0,8,0,13],[19,1,19,5],[18,1,18,5],[11,7,12,11],[9,0,10,5],[9,7,10,15],[15,1,15,5],[13,11,13,12],[14,11,14,12],[15,11,15,12],[33,0,33,5],[20,1,20,5],[30,1,30,5],[28,1,28,5],[29,1,29,5],[23,1,23,5],[24,1,24,5],[25,1,25,5],[26,1,26,5],[22,1,22,5],[32,1,32,5],[31,1,31,5],[27,1,27,5],[21,1,21,5]]}
["INSTRUCTIONS:  Use this form when a single information collection document involves multiple reporting and recordkeeping requirements.  The totals of the figures in cols. should be entered in item 13 of OMB-83-I:                  cols. (D) &/or (I) = 13a (respondent is only counted once); cols. F & I = 13b;         cols. H & K = 13c.                                                                                                                                                                                                                                                                                                       (F)Total/(D)Total = (E)Average     (H)Total/(F)Total = (G)Average     (K)Total/(I)Total = (J)Average\nNOTE:  The columns will calculate automatically.  If Col. E's response is something other than annually, i.e., 1/6 years, list as \"1/6\" & decimal will display.    \n",null,null,null,null,null,null,null,"TITLE OF INFORMATION COLLECTION DOCUMENT",null,null,null,null,null,"OMB NO.","0560-0297"]
[]
[null,null,null,null,null,null,null,null,"Coronavirus Food Assistance Program (CFAP 2)"]
[null,null,null,null,null,null,null,null,null,null,null,null,null,null,"DATE PREPARED"]
[null,null,null,null,null,null,null,null,null,null,null,null,null,null,"2021-08-02"]
[]
[]
[]
[]
["IDENTIFICATION OF REPORTING OR RECORDKEEPING REQUIREMENT",null,null,null,null,null,null,"ANNUAL BURDEN"]
[]
[null,null,null,null,null,null,null,"REPORTS",null,null,null,null,null,"RECORDS",null,null,"RESPONDENT COST"]
[]
[null,null,null,null,null,null,null,null,null,null,null,"TOTAL BURDEN HOURS",null,null,null,"TOTAL"]
[null,null,null,null,null,null,"FORMS NO (S)","NO. OF","NO OF","TOTAL ANNUAL","HOURS"," (Col. F x G)",null,"NO. OF ","ANNUAL ","RECORD-","COST","TOTAL"]
["SECTION OF","DESCRIPTION",null,null,null,null,"(If \"none\"","RESPONDENTS","RESPONSES","RESPONSES","PER  ","(H)",null,"RECORD-","HOURS PER","KEEPING HOURS","PER","COST"]
["REGS.",null,null,null,null,null,"so state)",null,"PER ","(Col. D x E)","RESPONSE",null,null,"KEEPERS","RECORD-","(Col. I x J)","HOUR","(Col. H x L)"]
[null,null,null,null,null,null,null,null,"RESPONDENT",null,null,"EXEMPT","NON-EXEMPT",null,"KEEPER"]
["(A)","(B)",null,null,null,null,"(C)","(D)","(E)","(F)","(G)",null,null,"(I)","(J)","(K)","(L)","(M)"]
["7 CFR part 9","Coronavirus Food Assistance Program 2 (CFAP 2) Application (also include the continuation sheets of AD-3117A and AD-3117B)",null,null,null,null,"AD-3117 ",860154,1,{"$f":"SUM(H20*I20)","v":860154},1,null,{"$f":"SUM(J20*K20)","v":860154},null,null,null,53.71,{"$f":"SUM(M20*Q20)","v":46198871.340000004}]
["7 CFR part 1400","Farm Operating Plan for Payment Eligibility (Parts A & B)",null,null,null,null,"CCC-902I",96062,1,96062,0.08,null,7684.96,null,null,null,53.71,412759.20160000003]
["7 CFR part 1400","Farm Operating Plan for Payment Eligibility (Parts A & B)",null,null,null,null,"CCC-902E",96062,1,96062,0.08,null,7684.96,null,null,null,53.71,412759.20160000003]
["7 CFR part 1400","Average Adjusted Gross Income (AGI) Certification and Consent to Disclosure of Tax Information",null,null,null,null,"CCC-941",182015,1,{"$f":"SUM(H23*I23)","v":182015},0.25,null,45503.75,null,null,null,53.71,2444006.4125000001]
["7 CFR part 1400","Certification of Income From Farming, Ranching and Forestry Operations, optional",null,null,null,null,"CCC-942",8008,1,8008,0.25,null,2002,null,null,null,53.71,107527.42]
["7 CFR part 1400","Member Information for Legal Entities, if applicable",null,null,null,null,"CCC-901",11008,1,11008,0.5,null,5504,null,null,null,53.71,295619.84000000003]
["7 CFR part 2","Highly Erodible Land Conservation (HELC) and Wetland Conservation Certification (exempt from PRA 16 U.S.C. 3846)",null,null,null,null,"AD-1026",80301,1,80301,0.08,{"$f":"J26*K26","v":6424.08},null,null,null,null,53.71,0]
[]
[]
[]
[]
[]
[null,"SUBTOTAL",null,null,null,null,null,null,null,{"$f":"SUM(J20:J25)","v":1253309},null,{"$f":"SUM(L20:L25)","v":0},927943,null,null,{"$f":"SUM(P20:P31)","v":0},null,{"$f":"SUM(R20:R31)","v":49871543.415700011}]
[null,"TOTAL OF ALL PAGES",null,null,null,null,null,null,null,{"$f":"SUM(J32)","v":1253309},null,{"$f":"SUM(L32)","v":0},{"$f":"SUM(M32)","v":927943},null,null,{"$f":"SUM(P32)","v":0},null,{"$f":"SUM(R32)","v":49871543.415700011}]
["TOTAL - COLUMNS \"F\" AND \"I\" = OMB 83-I, 13b; COLUMNS \"H\" AND \"K\" = OMB 83-I, 13c",null,null,null,null,null,null,null,null,{"$f":"SUM(J33+N33)","v":1253309},null,null,{"$f":"SUM(M33+P33)","v":927943}]